[Event "*** Titled Tuesday 3|2 Blitz"]
[Site "Chess.com"]
[Date "2015.08.04"]
[Round "6"]
[White "WarlordX"]
[Black "myaccount88"]
[Result "1-0"]
[WhiteElo "2207"]
[BlackElo "2170"]
[TimeControl "180+2"]
[EndTime "12:48:05 PDT"]
[Termination "WarlordX won by resignation"]

1. Nf3 {[%clk 0:03:01.9]} 1... g6 {[%clk 0:02:57.4]} 2. g3 {[%clk 0:03:02]} 2...
Bg7 {[%clk 0:02:58.3]} 3. Bg2 {[%clk 0:03:03.9]} 3... e6 {[%clk 0:02:56.8]} 4.
O-O {[%clk 0:03:04.3]} 4... Ne7 {[%clk 0:02:58.4]} 5. d4 {[%clk 0:03:00.1]} 5...
O-O {[%clk 0:02:59.4]} 6. c4 {[%clk 0:03:01]} 6... d5 {[%clk 0:03:00]} 7. Nc3
{[%clk 0:02:58.9]} 7... c6 {[%clk 0:02:54.8]} 8. Bf4 {[%clk 0:02:58.9]} 8...
dxc4 {[%clk 0:02:48.8]} 9. a4 {[%clk 0:02:59.3]} 9... Nd7 {[%clk 0:02:49]} 10.
Qc2 {[%clk 0:02:30.6]} 10... Nf6 {[%clk 0:02:41.6]} 11. e4 {[%clk 0:02:28.9]}
11... b6 {[%clk 0:02:40.1]} 12. Rad1 {[%clk 0:02:24.3]} 12... Bb7 {[%clk
0:02:35.3]} 13. Qe2 {[%clk 0:02:25]} 13... Rc8 {[%clk 0:02:25]} 14. Qxc4 {[%clk
0:02:25.6]} 14... c5 {[%clk 0:02:18.7]} 15. Qe2 {[%clk 0:02:06.4]} 15... c4
{[%clk 0:01:49.9]} 16. Rfe1 {[%clk 0:02:05.4]} 16... h6 {[%clk 0:01:18.6]} 17.
h4 {[%clk 0:02:05.5]} 17... Re8 {[%clk 0:01:15.6]} 18. Ne5 {[%clk 0:02:03.1]}
18... Nh5 {[%clk 0:01:10.4]} 19. Nxc4 {[%clk 0:01:58.7]} 19... Nxf4 {[%clk
0:01:10.6]} 20. gxf4 {[%clk 0:02:00.3]} 20... Nc6 {[%clk 0:01:10.3]} 21. d5
{[%clk 0:01:57]} 21... Nd4 {[%clk 0:01:09.6]} 22. Qd3 {[%clk 0:01:48.8]} 22...
exd5 {[%clk 0:01:09.4]} 23. exd5 {[%clk 0:01:46.5]} 23... Rxe1+ {[%clk
0:00:59.1]} 24. Rxe1 {[%clk 0:01:48.4]} 24... Rc5 {[%clk 0:00:51.8]} 25. Ne5
{[%clk 0:01:45.1]} 25... Nf5 {[%clk 0:00:42.5]} 26. h5 {[%clk 0:01:40.7]} 26...
Bxe5 {[%clk 0:00:25.6]} 27. fxe5 {[%clk 0:01:38.8]} 27... Qg5 {[%clk 0:00:26.4]}
28. hxg6 {[%clk 0:01:36.9]} 28... fxg6 {[%clk 0:00:19.4]} 29. Ne4 {[%clk
0:01:10.5]} 29... Rxd5 {[%clk 0:00:13.5]} 30. Nf6+ {[%clk 0:01:08.3]} 30... Kg7
{[%clk 0:00:12.4]} 31. Nxd5 {[%clk 0:01:08.5]} 31... Nh4 {[%clk 0:00:12.1]} 32.
Qg3 {[%clk 0:01:00.5]} 32... Nxg2 {[%clk 0:00:12]} 33. Qxg5 {[%clk 0:00:59.7]}
33... hxg5 {[%clk 0:00:10.9]} 34. Kxg2 {[%clk 0:01:01.2]} 34... Bxd5+ {[%clk
0:00:11.8]} 35. Kg3 {[%clk 0:01:02.9]} 35... Kf7 {[%clk 0:00:12.2]} 36. Kg4
{[%clk 0:01:02.5]} 36... Ke6 {[%clk 0:00:12]} 37. Kxg5 {[%clk 0:01:04]} 37...
Bb3 {[%clk 0:00:13]} 38. a5 {[%clk 0:01:03.8]} 38... Bc2 {[%clk 0:00:13.3]} 39.
axb6 {[%clk 0:01:04.5]} 39... axb6 {[%clk 0:00:14.4]} 40. f4 {[%clk 0:01:06.1]}
40... b5 {[%clk 0:00:15.4]} 41. Rc1 {[%clk 0:01:06.6]} 41... Bf5 {[%clk
0:00:15.3]} 42. Rc6+ {[%clk 0:01:05.6]} 42... Kd5 {[%clk 0:00:16.3]} 43. Rd6+
{[%clk 0:01:06.6]} 43... Kc4 {[%clk 0:00:16.6]} 44. e6 {[%clk 0:01:06.6]} 44...
Kc5 {[%clk 0:00:16.5]} 45. Ra6 {[%clk 0:01:07.5]} 45... b4 {[%clk 0:00:16.8]}
46. e7 {[%clk 0:01:08.7]} 46... Bd7 {[%clk 0:00:17.4]} 47. Ra8 {[%clk
0:01:08.8]} 47... Kd6 {[%clk 0:00:17.5]} 48. e8=Q {[%clk 0:01:09.9]} 1-0

[Event "*** Titled Tuesday 3|2 Blitz"]
[Site "Chess.com"]
[Date "2015.08.04"]
[Round "6"]
[White "Imre91"]
[Black "SenseiJulio"]
[Result "1-0"]
[WhiteElo "2615"]
[BlackElo "2501"]
[TimeControl "180+2"]
[EndTime "12:48:25 PDT"]
[Termination "Imre91 won by resignation"]

1. d4 {[%clk 0:02:57.9]} 1... e6 {[%clk 0:02:59.5]} 2. Nf3 {[%clk 0:02:58.1]}
2... d5 {[%clk 0:02:59.9]} 3. g3 {[%clk 0:02:59.6]} 3... c5 {[%clk 0:02:56.3]}
4. Bg2 {[%clk 0:02:56.1]} 4... Nf6 {[%clk 0:02:51.1]} 5. O-O {[%clk 0:02:56.8]}
5... Nc6 {[%clk 0:02:43.6]} 6. c4 {[%clk 0:02:56.8]} 6... Be7 {[%clk 0:02:43]}
7. cxd5 {[%clk 0:02:57.1]} 7... exd5 {[%clk 0:02:41.9]} 8. Nc3 {[%clk 0:02:57]}
8... O-O {[%clk 0:02:42.8]} 9. Bf4 {[%clk 0:02:55.4]} 9... c4 {[%clk 0:02:38.4]}
10. Ne5 {[%clk 0:02:55.7]} 10... h6 {[%clk 0:02:38]} 11. b3 {[%clk 0:02:48.4]}
11... cxb3 {[%clk 0:02:36.7]} 12. Nxc6 {[%clk 0:02:44.5]} 12... bxc6 {[%clk
0:02:38.6]} 13. Qxb3 {[%clk 0:02:44.3]} 13... Re8 {[%clk 0:02:32]} 14. Rac1
{[%clk 0:02:39.6]} 14... Ba6 {[%clk 0:02:29.2]} 15. Qa4 {[%clk 0:02:36.6]} 15...
Bc4 {[%clk 0:02:13.7]} 16. Qxc6 {[%clk 0:02:34.6]} 16... Ba3 {[%clk 0:02:13.1]}
17. Rb1 {[%clk 0:02:26.3]} 17... Qa5 {[%clk 0:02:12.6]} 18. Bd2 {[%clk
0:01:32.5]} 18... Rac8 {[%clk 0:01:58]} 19. Qb7 {[%clk 0:01:31.6]} 19... Bxe2
{[%clk 0:01:26]} 20. Rfe1 {[%clk 0:01:09.6]} 20... Rxc3 {[%clk 0:01:13.9]} 21.
Bxc3 {[%clk 0:00:43.4]} 21... Qxc3 {[%clk 0:01:15.8]} 22. Qxa7 {[%clk
0:00:44.7]} 22... Kh7 {[%clk 0:01:04.9]} 23. Bf1 {[%clk 0:00:24]} 23... Bd3
{[%clk 0:00:48.9]} 24. Rxe8 {[%clk 0:00:21.8]} 24... Bxb1 {[%clk 0:00:49.7]} 25.
Re3 {[%clk 0:00:19.5]} 25... Qd2 {[%clk 0:00:44.7]} 26. Qxa3 {[%clk 0:00:20]}
26... Ng4 {[%clk 0:00:44.9]} 27. Re2 {[%clk 0:00:20.3]} 27... Qd1 {[%clk
0:00:44.3]} 28. Qb3 {[%clk 0:00:16]} 28... Qc1 {[%clk 0:00:41.5]} 29. h3 {[%clk
0:00:17.1]} 29... Nf6 {[%clk 0:00:40.2]} 30. Qb2 {[%clk 0:00:18]} 30... Qd1
{[%clk 0:00:40.5]} 31. Qd2 {[%clk 0:00:18.8]} 31... Qa4 {[%clk 0:00:40.6]} 32.
Re3 {[%clk 0:00:17.8]} 32... Ne4 {[%clk 0:00:39.9]} 33. Bd3 {[%clk 0:00:16.4]}
33... Bxd3 {[%clk 0:00:41]} 34. Qxd3 {[%clk 0:00:18.3]} 34... f5 {[%clk
0:00:39.6]} 35. Qb3 {[%clk 0:00:17.9]} 35... Qxd4 {[%clk 0:00:39.6]} 36. Kg2
{[%clk 0:00:17]} 36... Qd2 {[%clk 0:00:39.7]} 37. Rf3 {[%clk 0:00:18.2]} 37...
Qe2 {[%clk 0:00:39.4]} 38. Qe3 {[%clk 0:00:18.9]} 38... Qc2 {[%clk 0:00:39.3]}
39. Rxf5 {[%clk 0:00:19.6]} 39... Nxg3 {[%clk 0:00:40.3]} 40. Rxd5 {[%clk
0:00:19.4]} 40... Nf5 {[%clk 0:00:40.8]} 41. Qd3 {[%clk 0:00:20.3]} 41... Qxd3
{[%clk 0:00:40.8]} 42. Rxd3 {[%clk 0:00:22.2]} 42... Kg6 {[%clk 0:00:42.6]} 43.
a4 {[%clk 0:00:22.8]} 43... Ne7 {[%clk 0:00:44]} 44. a5 {[%clk 0:00:24]} 44...
Nc6 {[%clk 0:00:45.6]} 1-0

[Event "*** Titled Tuesday 3|2 Blitz"]
[Site "Chess.com"]
[Date "2015.08.04"]
[Round "6"]
[White "chessking2151"]
[Black "proxy6"]
[Result "1-0"]
[WhiteElo "2003"]
[BlackElo "1909"]
[TimeControl "180+2"]
[EndTime "12:48:38 PDT"]
[Termination "chessking2151 won by resignation"]

1. e4 {[%clk 0:03:01.9]} 1... c5 {[%clk 0:02:53.5]} 2. c3 {[%clk 0:03:02.2]}
2... d5 {[%clk 0:02:52.8]} 3. exd5 {[%clk 0:03:02.8]} 3... Qxd5 {[%clk
0:02:54.7]} 4. d4 {[%clk 0:03:03.6]} 4... Nc6 {[%clk 0:02:51.7]} 5. Nf3 {[%clk
0:03:04.4]} 5... Bf5 {[%clk 0:02:51.6]} 6. Be3 {[%clk 0:02:59.2]} 6... e6 {[%clk
0:02:41.7]} 7. Be2 {[%clk 0:02:55.7]} 7... cxd4 {[%clk 0:02:36.7]} 8. cxd4
{[%clk 0:02:54.5]} 8... Nf6 {[%clk 0:02:35.2]} 9. Nc3 {[%clk 0:02:55]} 9... Qd8
{[%clk 0:02:28.4]} 10. O-O {[%clk 0:02:53.8]} 10... Be7 {[%clk 0:02:25.8]} 11.
Ne5 {[%clk 0:02:53.4]} 11... O-O {[%clk 0:02:25]} 12. Bf3 {[%clk 0:02:53.2]}
12... Rc8 {[%clk 0:02:07.8]} 13. a3 {[%clk 0:01:57.9]} 13... Nd7 {[%clk
0:01:30]} 14. Nxd7 {[%clk 0:01:54.5]} 14... Qxd7 {[%clk 0:01:31.9]} 15. d5
{[%clk 0:01:55.9]} 15... exd5 {[%clk 0:01:31.6]} 16. Nxd5 {[%clk 0:01:56.7]}
16... Ne5 {[%clk 0:01:23.5]} 17. Bxa7 {[%clk 0:01:34.6]} 17... Bc2 {[%clk
0:01:13]} 18. Qe2 {[%clk 0:01:28]} 18... Nxf3+ {[%clk 0:01:05.9]} 19. Qxf3
{[%clk 0:01:27]} 19... Bd6 {[%clk 0:01:03.9]} 20. Nb6 {[%clk 0:01:17.4]} 20...
Qe6 {[%clk 0:00:58.3]} 21. Nxc8 {[%clk 0:01:12.9]} 21... Rxc8 {[%clk 0:01:00.2]}
22. Be3 {[%clk 0:01:09.3]} 22... Qe5 {[%clk 0:00:59.1]} 23. g3 {[%clk
0:01:09.9]} 23... Be4 {[%clk 0:00:56.9]} 24. Qd1 {[%clk 0:00:48.3]} 24... Qe6
{[%clk 0:00:55]} 25. f3 {[%clk 0:00:39.7]} 25... Bd5 {[%clk 0:00:51.2]} 26. Re1
{[%clk 0:00:36.9]} 26... Bb3 {[%clk 0:00:49.9]} 27. Qd3 {[%clk 0:00:29.6]} 27...
Bc4 {[%clk 0:00:44.1]} 28. Qd2 {[%clk 0:00:30]} 28... Qg6 {[%clk 0:00:43.4]} 29.
Qf2 {[%clk 0:00:28]} 29... Be5 {[%clk 0:00:42.6]} 30. Bd4 {[%clk 0:00:25.5]}
30... Bd6 {[%clk 0:00:35]} 31. Rac1 {[%clk 0:00:25.3]} 31... Qf5 {[%clk
0:00:27.8]} 32. b3 {[%clk 0:00:21.5]} 32... Bxb3 {[%clk 0:00:27.6]} 33. Rxc8+
{[%clk 0:00:22.1]} 33... Qxc8 {[%clk 0:00:29.5]} 34. Bxg7 {[%clk 0:00:21.4]}
34... Bxa3 {[%clk 0:00:27.2]} 35. Bd4 {[%clk 0:00:20]} 35... Be6 {[%clk
0:00:25.3]} 36. Qd2 {[%clk 0:00:20.3]} 36... Be7 {[%clk 0:00:16.9]} 37. Qh6
{[%clk 0:00:20.9]} 37... Qf8 {[%clk 0:00:17.7]} 38. Qxf8+ {[%clk 0:00:21.4]}
38... Kxf8 {[%clk 0:00:19.6]} 39. Rb1 {[%clk 0:00:23]} 39... Bd5 {[%clk
0:00:19.8]} 40. Kf2 {[%clk 0:00:24.1]} 40... Ke8 {[%clk 0:00:19.5]} 41. f4
{[%clk 0:00:23.8]} 41... Kd7 {[%clk 0:00:21]} 42. Ke3 {[%clk 0:00:25.1]} 42...
Kc7 {[%clk 0:00:21]} 43. Be5+ {[%clk 0:00:26]} 43... Kc6 {[%clk 0:00:22]} 44.
Kd3 {[%clk 0:00:27]} 44... b5 {[%clk 0:00:22.5]} 45. Kc3 {[%clk 0:00:28.1]}
45... Kb6 {[%clk 0:00:23.2]} 46. Bd4+ {[%clk 0:00:28.5]} 46... Ka5 {[%clk
0:00:23.8]} 47. Ra1+ {[%clk 0:00:28.5]} 1-0

[Event "*** Titled Tuesday 3|2 Blitz"]
[Site "Chess.com"]
[Date "2015.08.04"]
[Round "6"]
[White "Tobi-Wan-Kenobi"]
[Black "samolo"]
[Result "1-0"]
[WhiteElo "2412"]
[BlackElo "2500"]
[TimeControl "180+2"]
[EndTime "12:48:49 PDT"]
[Termination "Tobi-Wan-Kenobi won by checkmate"]

1. e4 {[%clk 0:03:01.9]} 1... d6 {[%clk 0:03:00.6]} 2. d4 {[%clk 0:02:51.9]}
2... Nf6 {[%clk 0:03:01.5]} 3. Nc3 {[%clk 0:02:53.1]} 3... g6 {[%clk 0:03:03.4]}
4. g3 {[%clk 0:02:51.5]} 4... Bg7 {[%clk 0:03:04.7]} 5. Bg2 {[%clk 0:02:53]}
5... O-O {[%clk 0:03:04.8]} 6. Nge2 {[%clk 0:02:53.3]} 6... e5 {[%clk
0:03:06.1]} 7. h3 {[%clk 0:02:53]} 7... exd4 {[%clk 0:03:06.4]} 8. Nxd4 {[%clk
0:02:53.5]} 8... a6 {[%clk 0:03:08]} 9. O-O {[%clk 0:02:52.2]} 9... Re8 {[%clk
0:03:09.4]} 10. Nde2 {[%clk 0:02:48.1]} 10... Nc6 {[%clk 0:03:01.4]} 11. g4
{[%clk 0:02:42.2]} 11... Rb8 {[%clk 0:02:59.5]} 12. Ng3 {[%clk 0:02:39.6]} 12...
b5 {[%clk 0:02:59.8]} 13. g5 {[%clk 0:02:38]} 13... Nd7 {[%clk 0:03:00.8]} 14.
f4 {[%clk 0:02:27.8]} 14... Nd4 {[%clk 0:02:53.7]} 15. Nd5 {[%clk 0:02:12.6]}
15... c6 {[%clk 0:02:42.8]} 16. Ne3 {[%clk 0:02:10.7]} 16... b4 {[%clk
0:02:01.3]} 17. h4 {[%clk 0:01:57.5]} 17... a5 {[%clk 0:02:02.5]} 18. h5 {[%clk
0:01:51.7]} 18... Ba6 {[%clk 0:02:03.9]} 19. Rf2 {[%clk 0:01:50.7]} 19... Qb6
{[%clk 0:02:03.6]} 20. hxg6 {[%clk 0:01:22.9]} 20... hxg6 {[%clk 0:02:04.1]} 21.
Ng4 {[%clk 0:01:21.2]} 21... c5 {[%clk 0:01:41.4]} 22. f5 {[%clk 0:01:16.6]}
22... gxf5 {[%clk 0:01:27]} 23. Nf6+ {[%clk 0:00:59.7]} 23... Nxf6 {[%clk
0:01:21.5]} 24. gxf6 {[%clk 0:01:01.6]} 24... Bxf6 {[%clk 0:01:23.4]} 25. c3
{[%clk 0:00:42.1]} 25... bxc3 {[%clk 0:01:21.1]} 26. bxc3 {[%clk 0:00:44]} 26...
Bh4 {[%clk 0:00:51.3]} 27. cxd4 {[%clk 0:00:33.4]} 27... Bxg3 {[%clk 0:00:42.4]}
28. Rxf5 {[%clk 0:00:33.7]} 28... Kf8 {[%clk 0:00:37.2]} 29. Qf3 {[%clk
0:00:28.8]} 29... Bc4 {[%clk 0:00:26.8]} 30. Qxg3 {[%clk 0:00:21]} 30... cxd4
{[%clk 0:00:26.4]} 31. Bh6+ {[%clk 0:00:18.4]} 31... Ke7 {[%clk 0:00:28]} 32.
Bh3 {[%clk 0:00:15.3]} 32... Be6 {[%clk 0:00:27]} 33. Bg5+ {[%clk 0:00:14.1]}
33... Kd7 {[%clk 0:00:28.6]} 34. Rxf7+ {[%clk 0:00:14.6]} 34... Kc6 {[%clk
0:00:28.4]} 35. Rc1+ {[%clk 0:00:16]} 35... Kb5 {[%clk 0:00:28.3]} 36. Rb1+
{[%clk 0:00:16.2]} 36... Ka6 {[%clk 0:00:29.6]} 37. Rxb6+ {[%clk 0:00:16.8]}
37... Rxb6 {[%clk 0:00:31.5]} 38. Bxe6 {[%clk 0:00:16.9]} 38... Rxe6 {[%clk
0:00:30.1]} 39. Qd3+ {[%clk 0:00:16.9]} 39... Rb5 {[%clk 0:00:31.7]} 40. a4
{[%clk 0:00:17.6]} 40... Re5 {[%clk 0:00:31.9]} 41. axb5+ {[%clk 0:00:18.4]}
41... Rxb5 {[%clk 0:00:33.8]} 42. Rb7 {[%clk 0:00:19]} 42... Kxb7 {[%clk
0:00:32.9]} 43. Qxb5+ {[%clk 0:00:19.9]} 43... Kc7 {[%clk 0:00:34.8]} 44. Qxa5+
{[%clk 0:00:20.5]} 44... Kd7 {[%clk 0:00:36.7]} 45. Qd5 {[%clk 0:00:21.4]} 45...
d3 {[%clk 0:00:37.7]} 46. e5 {[%clk 0:00:22.2]} 46... d2 {[%clk 0:00:38.5]} 47.
Qxd6+ {[%clk 0:00:24.1]} 47... Kc8 {[%clk 0:00:40]} 48. Qxd2 {[%clk 0:00:25]}
48... Kc7 {[%clk 0:00:41.1]} 49. e6 {[%clk 0:00:25.9]} 49... Kc8 {[%clk
0:00:43]} 50. e7 {[%clk 0:00:26.9]} 50... Kb7 {[%clk 0:00:44.9]} 51. Kg2 {[%clk
0:00:27.2]} 51... Ka6 {[%clk 0:00:46.8]} 52. Kf3 {[%clk 0:00:28.1]} 52... Kb5
{[%clk 0:00:48.7]} 53. e8=Q+ {[%clk 0:00:29.1]} 53... Kc4 {[%clk 0:00:50.6]} 54.
Qc6+ {[%clk 0:00:29.2]} 54... Kb3 {[%clk 0:00:52.1]} 55. Qdc2+ {[%clk
0:00:30.3]} 55... Ka3 {[%clk 0:00:53.3]} 56. Be7# {[%clk 0:00:30.1]} 1-0

[Event "*** Titled Tuesday 3|2 Blitz"]
[Site "Chess.com"]
[Date "2015.08.04"]
[Round "6"]
[White "tac49"]
[Black "yurisolo"]
[Result "1-0"]
[WhiteElo "2465"]
[BlackElo "2415"]
[TimeControl "180+2"]
[EndTime "12:49:03 PDT"]
[Termination "tac49 won on time"]

1. e4 {[%clk 0:03:00.3]} 1... c5 {[%clk 0:03:00.7]} 2. Nf3 {[%clk 0:02:59.8]}
2... e6 {[%clk 0:03:02.2]} 3. d4 {[%clk 0:02:59.8]} 3... cxd4 {[%clk 0:03:04.1]}
4. Nxd4 {[%clk 0:03:00.7]} 4... Nc6 {[%clk 0:03:03.6]} 5. Nc3 {[%clk 0:02:59.9]}
5... d6 {[%clk 0:03:04.8]} 6. f3 {[%clk 0:02:49.3]} 6... Nf6 {[%clk 0:03:04.2]}
7. Be3 {[%clk 0:02:49.9]} 7... Be7 {[%clk 0:03:05.4]} 8. Qd2 {[%clk 0:02:50]}
8... O-O {[%clk 0:03:06.9]} 9. O-O-O {[%clk 0:02:50.4]} 9... a6 {[%clk
0:03:07.9]} 10. g4 {[%clk 0:02:50.2]} 10... Nd7 {[%clk 0:03:09.5]} 11. h4 {[%clk
0:02:48.4]} 11... Nde5 {[%clk 0:03:10.6]} 12. Be2 {[%clk 0:02:47.9]} 12... Nxd4
{[%clk 0:02:53.8]} 13. Bxd4 {[%clk 0:02:44.7]} 13... Qc7 {[%clk 0:02:53.9]} 14.
f4 {[%clk 0:02:41.1]} 14... Nc4 {[%clk 0:02:51.6]} 15. Bxc4 {[%clk 0:02:39.5]}
15... Qxc4 {[%clk 0:02:53.5]} 16. g5 {[%clk 0:01:43.7]} 16... b5 {[%clk
0:02:51.8]} 17. Kb1 {[%clk 0:01:36]} 17... Bb7 {[%clk 0:02:48.4]} 18. b3 {[%clk
0:01:18.4]} 18... Qc7 {[%clk 0:02:45.6]} 19. f5 {[%clk 0:01:05.9]} 19... b4
{[%clk 0:02:28.9]} 20. f6 {[%clk 0:00:45.6]} 20... bxc3 {[%clk 0:02:27.1]} 21.
Bxc3 {[%clk 0:00:47.5]} 21... Bxe4 {[%clk 0:01:50.7]} 22. fxe7 {[%clk
0:00:46.5]} 22... Rfc8 {[%clk 0:01:51.4]} 23. Rh3 {[%clk 0:00:44.9]} 23... Bf5
{[%clk 0:01:27]} 24. Rf3 {[%clk 0:00:40.5]} 24... Qxe7 {[%clk 0:01:27]} 25. Qd4
{[%clk 0:00:38.7]} 25... e5 {[%clk 0:01:26.7]} 26. Qxd6 {[%clk 0:00:39.3]} 26...
Qxd6 {[%clk 0:01:10.1]} 27. Rxd6 {[%clk 0:00:41.2]} 27... Bg6 {[%clk 0:00:46.7]}
28. Re3 {[%clk 0:00:41.4]} 28... Rc5 {[%clk 0:00:42.8]} 29. Kb2 {[%clk 0:00:38]}
29... a5 {[%clk 0:00:40.5]} 30. Rxe5 {[%clk 0:00:35.5]} 30... Rcc8 {[%clk
0:00:37.3]} 31. Rxa5 {[%clk 0:00:34]} 31... Rxa5 {[%clk 0:00:36.4]} 32. Bxa5
{[%clk 0:00:35.9]} 32... Rxc2+ {[%clk 0:00:37.9]} 33. Ka3 {[%clk 0:00:35.9]}
33... h6 {[%clk 0:00:39.2]} 34. Rd2 {[%clk 0:00:26]} 34... hxg5 {[%clk
0:00:05.5]} 35. Rxc2 {[%clk 0:00:21.4]} 35... Bxc2 {[%clk 0:00:07.4]} 36. hxg5
{[%clk 0:00:22.5]} 36... f6 {[%clk 0:00:08.8]} 37. gxf6 {[%clk 0:00:21.8]} 37...
gxf6 {[%clk 0:00:10.7]} 38. Kb4 {[%clk 0:00:22.7]} 38... Kf7 {[%clk 0:00:12]}
39. Kc5 {[%clk 0:00:21.4]} 39... Ke6 {[%clk 0:00:10.9]} 40. Bc3 {[%clk
0:00:13.5]} 40... f5 {[%clk 0:00:10.4]} 41. Bd2 {[%clk 0:00:11.6]} 41... Kd7
{[%clk 0:00:08]} 42. b4 {[%clk 0:00:11.2]} 1-0

[Event "*** Titled Tuesday 3|2 Blitz"]
[Site "Chess.com"]
[Date "2015.08.04"]
[Round "6"]
[White "DeviatkinAndrey"]
[Black "Keaton87"]
[Result "1-0"]
[WhiteElo "2546"]
[BlackElo "2431"]
[TimeControl "180+2"]
[EndTime "12:49:22 PDT"]
[Termination "DeviatkinAndrey won on time"]

1. b3 {[%clk 0:02:57.7]} 1... e5 {[%clk 0:02:59.7]} 2. Bb2 {[%clk 0:02:59.1]}
2... Nc6 {[%clk 0:03:00.1]} 3. e4 {[%clk 0:02:58.3]} 3... Nf6 {[%clk 0:02:46.7]}
4. Nf3 {[%clk 0:02:58.9]} 4... d6 {[%clk 0:02:40.3]} 5. d4 {[%clk 0:02:59.6]}
5... exd4 {[%clk 0:02:35.5]} 6. Nxd4 {[%clk 0:03:00.5]} 6... Be7 {[%clk
0:02:34.3]} 7. Bb5 {[%clk 0:02:58.8]} 7... Bd7 {[%clk 0:02:35.1]} 8. O-O {[%clk
0:02:57.4]} 8... O-O {[%clk 0:02:30.7]} 9. Bxc6 {[%clk 0:02:49.4]} 9... bxc6
{[%clk 0:02:31.4]} 10. Nc3 {[%clk 0:02:49.4]} 10... c5 {[%clk 0:02:29]} 11. Nde2
{[%clk 0:02:50]} 11... Bc6 {[%clk 0:02:27.1]} 12. f3 {[%clk 0:02:50.7]} 12...
Nd7 {[%clk 0:02:25.9]} 13. Nf4 {[%clk 0:02:51]} 13... Bf6 {[%clk 0:02:25.9]} 14.
Rb1 {[%clk 0:02:51.6]} 14... g6 {[%clk 0:02:26.1]} 15. Ncd5 {[%clk 0:02:50.8]}
15... Bxb2 {[%clk 0:02:23.9]} 16. Rxb2 {[%clk 0:02:52.1]} 16... Bxd5 {[%clk
0:02:22.1]} 17. Nxd5 {[%clk 0:02:52.7]} 17... Nb6 {[%clk 0:02:22.9]} 18. c4
{[%clk 0:02:51]} 18... Nxd5 {[%clk 0:02:22.8]} 19. Qxd5 {[%clk 0:02:51.5]} 19...
Qf6 {[%clk 0:02:23]} 20. Rd2 {[%clk 0:02:51.9]} 20... a5 {[%clk 0:02:22.5]} 21.
e5 {[%clk 0:02:48.9]} 21... Qxe5 {[%clk 0:02:19.9]} 22. Qxe5 {[%clk 0:02:49.7]}
22... dxe5 {[%clk 0:02:21.8]} 23. Rd5 {[%clk 0:02:49.6]} 23... a4 {[%clk
0:02:19.7]} 24. Rxe5 {[%clk 0:02:43.5]} 24... axb3 {[%clk 0:02:19.5]} 25. axb3
{[%clk 0:02:44.8]} 25... Rfb8 {[%clk 0:02:13.2]} 26. Rb1 {[%clk 0:02:40.5]}
26... Ra5 {[%clk 0:02:07.7]} 27. h4 {[%clk 0:02:39.7]} 27... Kg7 {[%clk
0:02:06.1]} 28. Kh2 {[%clk 0:02:33.3]} 28... Kf6 {[%clk 0:02:06.8]} 29. f4
{[%clk 0:02:32.7]} 29... h5 {[%clk 0:02:06.4]} 30. Kg3 {[%clk 0:02:28.9]} 30...
Rd8 {[%clk 0:01:58.9]} 31. Rbe1 {[%clk 0:02:26.5]} 31... Rd3+ {[%clk 0:01:56.1]}
32. R1e3 {[%clk 0:02:27.1]} 32... Rxe3+ {[%clk 0:01:56.9]} 33. Rxe3 {[%clk
0:02:27.9]} 33... Ra2 {[%clk 0:01:02.4]} 34. Re5 {[%clk 0:02:16.2]} 34... Rb2
{[%clk 0:01:03.3]} 35. Rxc5 {[%clk 0:02:17.5]} 35... Rxb3+ {[%clk 0:01:04.4]}
36. Kf2 {[%clk 0:02:18.5]} 36... Rc3 {[%clk 0:01:04.9]} 37. g3 {[%clk
0:02:17.7]} 37... Ke6 {[%clk 0:01:00.1]} 38. Rxc7 {[%clk 0:02:14.9]} 38... f6
{[%clk 0:00:57.7]} 39. Rc5 {[%clk 0:02:13.3]} 39... Kf7 {[%clk 0:00:52.9]} 40.
Rc8 {[%clk 0:02:09.7]} 40... Ke6 {[%clk 0:00:53.7]} 41. Rc5 {[%clk 0:02:07.9]}
41... Kf7 {[%clk 0:00:54.5]} 42. Kg2 {[%clk 0:02:03.1]} 42... Ke6 {[%clk
0:00:55.4]} 43. Kh3 {[%clk 0:02:00.4]} 43... Kd6 {[%clk 0:00:50.7]} 44. Rc8
{[%clk 0:02:00.1]} 44... Ke6 {[%clk 0:00:51.2]} 45. Rc7 {[%clk 0:01:41.6]} 45...
Kf5 {[%clk 0:00:44.5]} 46. Rc6 {[%clk 0:01:17.3]} 46... Rc2 {[%clk 0:00:44.9]}
47. c5 {[%clk 0:01:15.4]} 47... g5 {[%clk 0:00:38.1]} 48. hxg5 {[%clk
0:01:11.8]} 48... fxg5 {[%clk 0:00:40]} 49. fxg5 {[%clk 0:01:13.2]} 49... Kxg5
{[%clk 0:00:41.9]} 50. Rc8 {[%clk 0:01:14.5]} 50... Rc4 {[%clk 0:00:33.1]} 51.
c6 {[%clk 0:01:14.8]} 51... Kg6 {[%clk 0:00:34.2]} 52. Kg2 {[%clk 0:01:10.8]}
52... Kf6 {[%clk 0:00:24.1]} 53. Kf2 {[%clk 0:01:10.2]} 53... Ke6 {[%clk
0:00:19.3]} 54. Ke3 {[%clk 0:01:10.7]} 54... h4 {[%clk 0:00:18.3]} 55. Kd3
{[%clk 0:01:02.6]} 55... Rg4 {[%clk 0:00:18.3]} 56. gxh4 {[%clk 0:01:00.9]}
56... Rxh4 {[%clk 0:00:20.2]} 57. Rd8 {[%clk 0:01:02.2]} 57... Rh7 {[%clk
0:00:05.1]} 58. Kd4 {[%clk 0:01:01.2]} 1-0